fUST/lending_fUST_20250501
["ID","MTS","AMOUNT","RATE_DAILY","PERIOD"]
[359550385,1746109841240,-400.0,0.00030136,5]
[359550386,1746109841250,-2047.54,0.00030136,5]
[359550387,1746109841261,-400.0,0.00030136,5]
[359550388,1746109841270,-400.0,0.00030136,5]
[359550389,1746109841280,-500.0,0.00030136,5]
[359550390,1746109841290,-400.0,0.00030136,5]
[359550391,1746109841300,-500.0,0.00030136,5]
[359550392,1746109841310,-500.0,0.00030136,5]
[359550393,1746109841320,-500.0,0.00030136,5]
[359550394,1746109841330,-500.0,0.00030136,5]
[359550395,1746109841340,-500.0,0.00030136,5]
[359550396,1746109841350,-500.0,0.00030136,5]
[359550397,1746109841361,-500.0,0.00030136,5]
[359550398,1746109841372,-500.0,0.00030136,5]
[359550399,1746109841382,-500.0,0.00030136,5]
[359550400,1746109841392,-962.12,0.00030136,5]
[359550401,1746109841401,-400.0,0.00030136,5]
[359550402,1746109841411,-500.0,0.00030136,5]
[359550403,1746109841420,-970.7,0.00030136,5]
[359550404,1746109841430,-401.58273591,0.00030136,5]
[359550405,1746109841439,-400.0,0.00030136,5]
[359550406,1746109841449,-576.8,0.00030136,5]
[359550407,1746109841458,-410.67622879,0.00030136,5]
[359550408,1746109841469,-400.0,0.00030136,5]
[359550409,1746109841478,-400.0,0.00030136,5]
[359550410,1746109841488,-400.0,0.00030136,5]
[359550411,1746109841498,-652.72,0.00030136,5]
[359550412,1746109841508,-400.0,0.00030136,5]
[359550413,1746109841517,-500.0,0.00030136,5]
[359550414,1746109841527,-778.87,0.00030136,5]
[359550415,1746109841536,-400.0,0.00030136,5]
[359550416,1746109841546,-735.95,0.00030136,5]
[359550417,1746109841556,-400.0,0.00030136,5]
[359550418,1746109841565,-400.0,0.00030136,5]
[359550419,1746109841575,-400.0,0.00030136,5]
[359550420,1746109841585,-592.42,0.00030136,5]
[359550421,1746109841595,-527.81653058,0.00030136,5]
[359550422,1746109841605,-400.0,0.00030136,5]
[359550423,1746109841615,-400.0,0.00030136,5]
[359550424,1746109841625,-400.0,0.00030136,5]
[359550425,1746109841634,-2269.42,0.00030136,5]
[359550426,1746109841643,-400.0,0.00030136,5]
[359550427,1746109841653,-400.0,0.00030136,5]
[359550428,1746109841662,-400.0,0.00030136,5]
[359550429,1746109841672,-400.0,0.00030136,5]
[359550430,1746109841681,-400.0,0.00030136,5]
[359550431,1746109841691,-400.0,0.00030136,5]
[359550432,1746109841700,-536.42,0.00030136,5]
[359550433,1746109841710,-400.0,0.00030136,5]
[359550434,1746109841719,-400.0,0.00030136,5]
[359550435,1746109841729,-400.0,0.00030136,5]
[359550436,1746109841739,-400.0,0.00030136,5]
[359550437,1746109841750,-400.0,0.00030136,5]
[359550438,1746109841760,-500.0,0.00030136,5]
[359550439,1746109841813,-400.0,0.00030136,5]
[359550440,1746109841825,-437.72,0.00030136,5]
[359550441,1746109841834,-500.0,0.00030136,5]
[359550442,1746109841844,-500.0,0.00030136,5]
[359550443,1746109841855,-627.79215299,0.00030136,5]
[359550444,1746109841864,-400.0,0.00030136,5]
[359550445,1746109841873,-400.0,0.00030136,5]
[359550446,1746109841882,-400.0,0.00030136,5]
[359550447,1746109841892,-400.0,0.00030136,5]
[359550448,1746109841901,-400.0,0.00030136,5]
[359550449,1746109841910,-400.0,0.00030136,5]
[359550450,1746109841920,-22725.98,0.00030136,5]
[359550451,1746109841929,-400.0,0.00030136,5]
[359550452,1746109841940,-1144.0,0.00030136,5]
[359550453,1746109841950,-400.0,0.00030136,5]
[359550454,1746109841960,-553.95,0.00030136,5]
[359550455,1746109841969,-400.0,0.00030136,5]
[359550456,1746109841979,-709.43,0.00030136,5]
[359550457,1746109841988,-400.0,0.00030136,5]
[359550458,1746109841998,-400.0,0.00030136,5]
[359550459,1746109842007,-400.0,0.00030136,5]
[359550460,1746109842016,-400.0,0.00030136,5]
[359550461,1746109842026,-400.0,0.00030136,5]
[359550462,1746109842035,-4719.51,0.00030136,5]
[359550463,1746109842043,-400.0,0.00030136,5]
[359550464,1746109842052,-424.85,0.00030136,5]
[359550465,1746109842061,-400.0,0.00030136,5]
[359550466,1746109842070,-400.0,0.00030136,5]
[359550467,1746109842078,-210.9598161,0.00030136,5]
[359550468,1746109842087,-401.48199165,0.00030136,5]
[359550469,1746109842096,-400.0,0.00030136,5]
[359550470,1746109842107,-534.25898682,0.00030136,5]
[359550471,1746109842117,-664.88,0.00030136,5]
[359550472,1746109842126,-1103.63,0.00030136,5]
[359550473,1746109842136,-400.0,0.00030136,5]
[359550474,1746109842147,-825.71,0.00030136,5]
[359550475,1746109842157,-400.0,0.00030136,5]
[359550476,1746109842167,-400.0,0.00030136,5]
[359550477,1746109842177,-319.75064206,0.00030136,5]
[359550478,1746109842186,-400.0,0.00030136,5]
[359550479,1746109842196,-1750.49,0.00030136,5]
[359550480,1746109842206,-661.077001,0.00030136,7]
[359550481,1746109842215,-400.0,0.00030136,5]
[359550482,1746109842225,-661.077001,0.00030136,7]
[359550483,1746109842235,-400.0,0.00030136,5]
[359550484,1746109842244,-661.077001,0.00030136,7]
[359550485,1746109842254,-661.077001,0.00030136,7]
[359550486,1746109842265,-400.0,0.00030136,5]
[359550487,1746109842276,-6695.19,0.00030136,5]
[359550488,1746109842286,-400.97358371,0.00030136,5]
[359550489,1746109842296,-2044.21,0.00030136,5]
[359550490,1746109842305,-400.0,0.00030136,5]
[359550491,1746109842314,-158.695611,0.00030136,7]
[359550492,1746109842324,-534.26,0.00030136,5]
[359550493,1746109842334,-1118.77,0.00030136,5]
[359550494,1746109842343,-1118.77,0.00030136,5]
[359550495,1746109842353,-1118.77,0.00030136,5]
[359550496,1746109842362,-1118.77,0.00030136,5]
[359550497,1746109842372,-1118.77,0.00030136,5]
[359550498,1746109842381,-1118.77,0.00030136,5]
[359550499,1746109842390,-158.695611,0.00030136,7]
[359550500,1746109842400,-1118.77,0.00030136,5]
[359550501,1746109842410,-1118.77,0.00030136,5]
[359550502,1746109842419,-1118.77,0.00030136,5]
[359550503,1746109842428,-1118.77,0.00030136,5]
[359550504,1746109842438,-400.0,0.00030136,5]
[359550505,1746109842447,-400.0,0.00030136,5]
[359550506,1746109842457,-400.0,0.00030136,5]
[359550507,1746109842466,-1229.87,0.00030136,5]
[359550508,1746109842475,-1220.62,0.00030136,5]
[359550509,1746109842486,-400.0,0.00030136,5]
[359550510,1746109842496,-400.0,0.00030136,5]
[359550511,1746109842506,-854.6,0.00030136,5]
[359550512,1746109842515,-400.0,0.00030136,5]
[359550513,1746109842525,-530.87,0.00030136,5]
[359550514,1746109842535,-400.0,0.00030136,5]
[359550515,1746109842544,-400.0,0.00030136,5]
[359550516,1746109842553,-400.0,0.00030136,5]
[359550517,1746109842563,-4771.91,0.00030136,5]
[359550518,1746109842572,-400.0,0.00030136,5]
[359550519,1746109842581,-400.0,0.00030136,5]
[359550521,1746109842590,-400.0,0.00030136,5]
[359550522,1746109842600,-168.72796828,0.00030136,5]
[359550523,1746109842614,-400.0,0.00030136,5]
[359550524,1746109842624,-400.0,0.00030136,5]
[359550525,1746109842634,-400.0,0.00030136,5]
[359550526,1746109842643,-151.0,0.00030136,7]
[359550527,1746109842653,-151.0,0.00030136,7]
[359550528,1746109842662,-400.0,0.00030136,5]
[359550529,1746109842671,-1711.97,0.00030136,5]
[359550530,1746109842681,-400.0,0.00030136,5]
[359550531,1746109842690,-450.74523369,0.00030136,5]
[359550532,1746109842699,-204.397078,0.00030136,7]
[359550533,1746109842709,-400.0,0.00030136,5]
[359550534,1746109842719,-400.0,0.00030136,5]
[359550535,1746109842728,-500.0,0.00030136,5]
[359550536,1746109842738,-500.0,0.00030136,5]
[359550537,1746109842750,-400.0,0.00030136,5]
[359550538,1746109842759,-593.05,0.00030136,5]
[359550539,1746109842769,-400.0,0.00030136,5]
[359550540,1746109842778,-2496.38,0.00030136,5]
[359550541,1746109842788,-400.0,0.00030136,5]
[359550542,1746109842799,-401.60548928,0.00030136,5]
[359550544,1746109842809,-1900.16,0.00030136,5]
[359550546,1746109842819,-400.0,0.00030136,5]
[359550547,1746109842829,-667.31,0.00030136,5]
[359550548,1746109842840,-400.0,0.00030136,5]
[359550549,1746109842849,-400.0,0.00030136,5]
[359550550,1746109842861,-400.0,0.00030136,5]
[359550551,1746109842871,-3366.96,0.00030136,5]
[359550552,1746109842881,-400.0,0.00030136,5]
[359550553,1746109842891,-541.04,0.00030136,5]
[359550554,1746109842901,-400.0,0.00030136,5]
[359550555,1746109842910,-400.0,0.00030136,5]
[359550557,1746109842919,-400.0,0.00030136,5]
[359550558,1746109842929,-501.67214049,0.00030136,5]
[359550559,1746109842938,-648.99,0.00030136,5]
[359550560,1746109842948,-1668.26,0.00030136,5]
[359550561,1746109842958,-400.0,0.00030136,5]
[359550562,1746109842967,-228.89545558,0.00030136,5]
[359550563,1746109842976,-676.82,0.00030136,5]
[359550564,1746109842986,-793.15,0.00030136,5]
[359550565,1746109842996,-400.0,0.00030136,5]
[359550566,1746109843005,-400.0,0.00030136,5]
[359550567,1746109843017,-151.0,0.00030136,7]
[359550568,1746109843026,-151.0,0.00030136,7]
[359550569,1746109843035,-400.0,0.00030136,5]
[359550570,1746109843045,-401.92353793,0.00030136,5]
[359550571,1746109843054,-791.15,0.00030136,5]
[359550572,1746109843064,-715.05,0.00030136,5]
[359550573,1746109843074,-400.0,0.00030136,5]
[359550574,1746109843083,-400.0,0.00030136,5]
[359550575,1746109843093,-401.58923033,0.00030136,5]
[359550576,1746109843103,-593.63,0.00030136,5]
[359550577,1746109843113,-400.0,0.00030136,5]
[359550578,1746109843123,-400.0,0.00030136,5]
[359550579,1746109843133,-401.5041345,0.00030136,5]
[359550580,1746109843143,-408.7197398,0.00030136,5]
[359550581,1746109843152,-650.93,0.00030136,5]
[359550582,1746109843162,-400.0,0.00030136,5]
[359550583,1746109843172,-400.0,0.00030136,5]
[359550584,1746109843181,-400.0,0.00030136,5]
[359550585,1746109843191,-400.0,0.00030136,5]
[359550586,1746109843201,-400.0,0.00030136,5]
[359550587,1746109843210,-400.0,0.00030136,5]
[359550588,1746109843220,-2050.5,0.00030136,5]
[359550589,1746109843229,-502.79916815,0.00030136,5]
[359550590,1746109843239,-400.0,0.00030136,5]
[359550591,1746109843249,-400.0,0.00030136,5]
[359550592,1746109843258,-892.73,0.00030136,5]
[359550593,1746109843267,-400.0,0.00030136,5]
[359550594,1746109843277,-2622.97,0.00030136,5]
[359550595,1746109843287,-1258.08,0.00030136,5]
[359550596,1746109843296,-1163.03,0.00030136,5]
[359550597,1746109843306,-400.0,0.00030136,5]
[359550598,1746109843316,-547.78287224,0.00030136,5]
[359550599,1746109843327,-500.95,0.00030136,5]
[359550600,1746109843336,-400.0,0.00030136,5]
[359550601,1746109843346,-621.53,0.00030136,5]
[359550602,1746109843355,-500.0,0.00030136,5]
[359550603,1746109843365,-1130.64,0.00030136,5]
[359550604,1746109843374,-400.0,0.00030136,5]
[359550605,1746109843384,-400.0,0.00030136,5]
[359550606,1746109843393,-680.73,0.00030136,5]
[359550607,1746109843403,-1151.52,0.00030136,5]
[359550608,1746109843413,-840.96,0.00030136,5]
[359550609,1746109843423,-1500.87,0.00030136,5]
[359550610,1746109843434,-547.34,0.00030136,5]
[359550611,1746109843443,-400.0,0.00030136,5]
[359550612,1746109843453,-401.81066792,0.00030136,5]
[359550613,1746109843464,-400.0,0.00030136,5]
[359550614,1746109843474,-400.0,0.00030136,5]
[359550615,1746109843483,-346.10537169,0.00030136,5]
[359550616,1746109843493,-400.0,0.00030136,5]
[359550617,1746109843503,-400.0,0.00030136,5]
[359550618,1746109843512,-5258.92,0.00030136,2]
[359550619,1746109843522,-601.79,0.00030136,5]
[359550620,1746109843531,-1366.99,0.00030136,5]
[359550621,1746109843541,-400.0,0.00030136,5]
[359550622,1746109843551,-400.0,0.00030136,5]
[359550623,1746109843560,-400.0,0.00030136,5]
[359550624,1746109843570,-400.0,0.00030136,5]
[359550625,1746109843579,-501.58573037,0.00030136,5]
[359550626,1746109843589,-400.0,0.00030136,5]
[359550627,1746109843598,-570.2,0.00030136,5]
[359550628,1746109843609,-910.79,0.00030136,5]
[359550629,1746109843618,-439.55295261,0.00030136,2]
[359550630,1746109843628,-501.68939261,0.00030136,5]
[359550631,1746109843638,-259.28065237,0.00030136,5]
[359550632,1746109843647,-400.0,0.00030136,5]
[359550633,1746109843657,-201.67297453,0.00030136,5]
[359550634,1746109843666,-400.0,0.00030136,5]
[359550635,1746109843676,-400.0,0.00030136,5]
[359550636,1746109843686,-187.508528,0.00030136,7]
[359550637,1746109843696,-187.508528,0.00030136,7]
[359550638,1746109843706,-400.0,0.00030136,5]
[359550639,1746109843716,-375.342705,0.00030136,7]
[359550640,1746109843726,-582.04,0.00030136,5]
[359550641,1746109843735,-375.342705,0.00030136,7]
[359550642,1746109843747,-1608.22,0.00030136,5]
[359550643,1746109843756,-400.0,0.00030136,5]
[359550644,1746109843766,-187.508528,0.00030136,7]
[359550645,1746109843775,-400.0,0.00030136,5]
[359550646,1746109843785,-187.508528,0.00030136,7]
[359550647,1746109843796,-400.0,0.00030136,5]
[359550648,1746109843805,-502.75600258,0.00030136,5]
[359550649,1746109843815,-400.0,0.00030136,5]
[359550650,1746109843825,-400.0,0.00030136,5]
[359550651,1746109843835,-375.342705,0.00030136,7]
[359550652,1746109843844,-375.342705,0.00030136,7]
[359550653,1746109843853,-400.0,0.00030136,5]
[359550654,1746109843863,-593.93,0.00030136,5]
[359550655,1746109843873,-405.97277529,0.00030136,5]
[359550656,1746109843882,-400.0,0.00030136,5]
[359550657,1746109843891,-1540.62,0.00030136,5]
[359550658,1746109843901,-400.0,0.00030136,5]
[359550659,1746109843909,-400.0,0.00030136,5]
[359550660,1746109843918,-400.0,0.00030136,5]
[359550661,1746109843929,-402.47583889,0.00030137,60]
[359550662,1746109843938,-155.0,0.00030137,2]
[359550663,1746109843948,-182.8,0.00030137,25]
[359550664,1746109843958,-500.0,0.00030141,5]
[359550665,1746109843967,-500.0,0.00030173,5]
[359550666,1746109843976,-502.29208565,0.00030173,5]
[359550667,1746109843986,-300.0,0.00030173,5]
[359550668,1746109843995,-213.34599747,0.00030173,5]
[359550669,1746109844005,-500.0,0.00030173,5]
[359550670,1746109844015,-500.0,0.00030173,5]
[359550671,1746109844024,-500.0,0.00030173,5]
[359550672,1746109844034,-500.0,0.00030173,5]
[359550673,1746109844045,-500.0,0.00030173,5]
[359550674,1746109844054,-293.35060351,0.00030173,5]
[359550675,1746109844064,-500.0,0.00030173,5]
[359550676,1746109844073,-172.90116035,0.00030173,5]
[359550677,1746109844083,-500.0,0.00030173,5]
[359550678,1746109844092,-500.0,0.00030173,5]
[359550679,1746109844102,-500.0,0.00030173,5]
[359550680,1746109844112,-500.0,0.00030173,5]
[359550681,1746109844121,-500.0,0.00030173,5]
[359550682,1746109844130,-506.56622276,0.00030173,5]
[359550683,1746109844139,-500.0,0.00030173,5]
[359550684,1746109844148,-6612.60325837,0.00030394,2]
[359550685,1746109844157,-1219.07589331,0.00030396,15]
[359550686,1746109844167,-292.688111,0.000304,7]
[359550687,1746109844176,-292.688111,0.000304,7]
[359550688,1746109844186,-316.844648,0.000304,7]
[359550689,1746109844195,-316.844648,0.000304,7]
[359550690,1746109844205,-661.077001,0.000304,7]
[359550691,1746109844214,-661.077001,0.000304,7]
[359550692,1746109844224,-151.0,0.000304,7]
[359550693,1746109844233,-157.282533,0.000304,7]
[359550694,1746109844242,-187.508528,0.000304,7]
[359550695,1746109844252,-375.342705,0.000304,7]
[359550696,1746109844262,-187.508528,0.000304,7]
[359550697,1746109844271,-375.342705,0.000304,7]
[359550698,1746109844281,-46243.0353034,0.000304,2]
[359550699,1746109844291,-500.0,0.00030409,5]
[359550700,1746109844301,-500.0,0.00030409,5]
[359550701,1746109844311,-156.41721617,0.00030409,5]
[359550702,1746109844320,-1118.77,0.00030409,5]
[359550703,1746109844330,-1118.77,0.00030409,5]
[359550704,1746109844339,-1118.77,0.00030409,5]
[359550705,1746109844349,-156.39755156,0.0003041,5]
[359550706,1746109844359,-411.65647476,0.0003041,5]
[359550707,1746109844369,-314.83806076,0.0003041,5]
[359550708,1746109844378,-400.0,0.0003041,5]
[359550709,1746109844388,-400.0,0.0003041,5]
[359550710,1746109844397,-150.62434691,0.0003041,5]
[359550711,1746109844407,-409.98277887,0.0003041,5]
[359550712,1746109844422,-400.0,0.0003041,5]
[359550713,1746109844432,-1008.92558982,0.0003041,5]
[359550714,1746109844442,-400.0,0.0003041,5]
[359550715,1746109844451,-400.0,0.0003041,5]
[359550716,1746109844460,-400.0,0.0003041,5]
[359550717,1746109844470,-502.88236945,0.0003041,5]
[359550718,1746109844479,-400.0,0.0003041,5]
[359550719,1746109844489,-400.0,0.0003041,5]
[359550720,1746109844499,-400.0,0.0003041,5]
[359550721,1746109844509,-456.60389282,0.0003041,5]
[359550722,1746109844518,-400.0,0.0003041,5]
[359550723,1746109844530,-400.0,0.0003041,5]
[359550724,1746109844540,-505.47737108,0.0003041,5]
[359550725,1746109844549,-400.0,0.0003041,5]
[359550726,1746109844558,-525.34931195,0.0003041,5]
[359550727,1746109844568,-400.0,0.0003041,5]
[359550728,1746109844578,-400.0,0.0003041,5]
[359550729,1746109844589,-400.0,0.0003041,5]
[359550730,1746109844598,-400.0,0.0003041,5]
[359550731,1746109844607,-383.1180119,0.0003041,5]
[359550732,1746109844616,-400.0,0.0003041,5]
[359550733,1746109844627,-400.0,0.0003041,5]
[359550734,1746109844636,-500.0,0.0003041,5]
[359550735,1746109844646,-701.43,0.0003041,5]
[359550736,1746109844656,-400.0,0.0003041,5]
[359550737,1746109844666,-400.0,0.0003041,5]
[359550738,1746109844675,-502.25335776,0.0003041,5]
[359550739,1746109844685,-400.0,0.0003041,5]
[359550740,1746109844694,-400.0,0.0003041,5]
[359550741,1746109844703,-400.0,0.0003041,5]
[359550742,1746109844714,-400.0,0.0003041,5]
[359550743,1746109844725,-400.0,0.0003041,5]
[359550744,1746109844735,-588.02,0.0003041,5]
[359550745,1746109844745,-400.0,0.0003041,5]
[359550746,1746109844755,-400.0,0.0003041,5]
[359550747,1746109844766,-400.0,0.0003041,5]
[359550748,1746109844775,-400.0,0.0003041,5]
[359550749,1746109844786,-400.0,0.0003041,5]
[359550750,1746109844796,-400.0,0.0003041,5]
[359550751,1746109844806,-400.0,0.0003041,5]
[359550752,1746109844815,-400.0,0.0003041,5]
[359550753,1746109844825,-400.0,0.0003041,5]
[359550754,1746109844834,-400.0,0.0003041,5]
[359550755,1746109844844,-400.0,0.0003041,5]
[359550756,1746109844854,-400.0,0.0003041,5]
[359550757,1746109844864,-400.0,0.0003041,5]
[359550758,1746109844873,-292.33817668,0.0003041,5]
[359550759,1746109844882,-400.0,0.0003041,5]
[359550760,1746109844892,-151.0,0.0003041,7]
[359550761,1746109844901,-400.0,0.0003041,5]
[359550762,1746109844910,-400.0,0.0003041,5]
[359550763,1746109844920,-400.0,0.0003041,5]
[359550764,1746109844929,-400.0,0.0003041,5]
[359550765,1746109844939,-902.03,0.0003041,5]
[359550766,1746109844949,-458.92,0.0003041,5]
[359550767,1746109844959,-400.0,0.0003041,5]
[359550768,1746109844969,-400.0,0.0003041,5]
[359550769,1746109844979,-297.04214001,0.0003041,5]
[359550770,1746109844989,-400.0,0.0003041,5]
[359550771,1746109844999,-400.0,0.0003041,5]
[359550772,1746109845009,-400.0,0.0003041,5]
[359550773,1746109845018,-198.85353292,0.0003041,5]
[359550774,1746109845028,-491.82,0.0003041,5]
[359550775,1746109845038,-400.0,0.0003041,5]
[359550776,1746109845060,-400.0,0.0003041,5]
[359550777,1746109845071,-400.0,0.0003041,5]
[359550778,1746109845081,-400.0,0.0003041,5]
[359550779,1746109845091,-724.95,0.0003041,5]
[359550780,1746109845103,-400.0,0.0003041,5]
[359550781,1746109845115,-400.0,0.0003041,2]
[359550782,1746109845125,-400.0,0.0003041,5]
[359550783,1746109845136,-530.15,0.0003041,5]
[359550784,1746109845146,-400.0,0.0003041,5]
[359550785,1746109845156,-405.49942321,0.0003041,5]
[359550786,1746109845167,-151.0,0.0003041,7]
[359550787,1746109845177,-599.32,0.0003041,5]
[359550788,1746109845188,-400.0,0.0003041,5]
[359550789,1746109845198,-400.0,0.0003041,5]
[359550790,1746109845208,-400.0,0.0003041,5]
[359550791,1746109845218,-400.0,0.0003041,5]
[359550792,1746109845229,-437.94664511,0.0003041,5]
[359550793,1746109845239,-400.0,0.0003041,5]
[359550794,1746109845250,-400.0,0.0003041,5]
[359550795,1746109845260,-400.0,0.0003041,5]
[359550796,1746109845271,-711.11,0.0003041,5]
[359550797,1746109845281,-400.0,0.0003041,5]
[359550798,1746109845291,-400.0,0.0003041,5]
[359550799,1746109845302,-400.0,0.0003041,5]
[359550800,1746109845312,-156.936783,0.0003041,7]
[359550801,1746109845323,-1502.7,0.0003041,5]
[359550802,1746109845333,-400.0,0.0003041,5]
[359550803,1746109845344,-400.0,0.0003041,5]
[359550804,1746109845355,-400.0,0.0003041,5]
[359550805,1746109845366,-400.0,0.0003041,5]
[359550806,1746109845376,-510.52835663,0.0003041,5]
[359550807,1746109845387,-400.0,0.0003041,5]
[359550808,1746109845399,-400.0,0.0003041,5]
[359550809,1746109845409,-400.0,0.0003041,5]
[359550810,1746109845421,-387.65701284,0.0003041,5]
[359550811,1746109845433,-400.0,0.0003041,5]
[359550812,1746109845444,-400.0,0.0003041,5]
[359550813,1746109845454,-400.0,0.0003041,5]
[359550814,1746109845464,-400.0,0.0003041,5]
[359550815,1746109845474,-400.0,0.0003041,5]
[359550816,1746109845484,-896.85,0.0003041,5]
[359550817,1746109845495,-400.0,0.0003041,5]
[359550818,1746109845504,-400.0,0.0003041,5]
[359550819,1746109845515,-599.64,0.0003041,5]
[359550820,1746109845525,-1268.33,0.0003041,5]
[359550821,1746109845535,-1132.84,0.0003041,5]
[359550822,1746109845546,-400.0,0.0003041,5]
[359550823,1746109845556,-400.0,0.0003041,5]
[359550824,1746109845565,-461.29784834,0.0003041,5]
[359550826,1746109845575,-400.0,0.0003041,5]
[359550827,1746109845586,-400.0,0.0003041,5]
[359550828,1746109845596,-400.0,0.0003041,5]
[359550829,1746109845607,-400.0,0.0003041,5]
[359550830,1746109845618,-400.0,0.0003041,5]
[359550831,1746109845628,-400.0,0.0003041,5]
[359550832,1746109845637,-151.0,0.0003041,7]
[359550833,1746109845647,-151.0,0.0003041,7]
[359550834,1746109845661,-889.06,0.0003041,5]
[359550835,1746109845672,-151.0,0.0003041,7]
[359550836,1746109845682,-400.0,0.0003041,5]
[359550837,1746109845693,-400.0,0.0003041,5]
[359550838,1746109845703,-400.0,0.0003041,5]
[359550839,1746109845713,-940.91,0.0003041,5]
[359550840,1746109845723,-400.0,0.0003041,5]
[359550841,1746109845734,-400.0,0.0003041,5]
[359550842,1746109845746,-400.0,0.0003041,5]
[359550843,1746109845756,-400.0,0.0003041,5]
[359550844,1746109845767,-2047.54,0.0003041,5]
[359550845,1746109845777,-400.0,0.0003041,5]
[359550846,1746109845788,-400.0,0.0003041,5]
[359550848,1746109845799,-400.0,0.0003041,5]
[359550850,1746109845809,-962.12,0.0003041,5]
[359550851,1746109845822,-400.0,0.0003041,5]
[359550852,1746109845833,-970.7,0.0003041,5]
[359550853,1746109845843,-400.0,0.0003041,5]
[359550854,1746109845854,-576.8,0.0003041,5]
[359550855,1746109845866,-312.35323115,0.0003041,5]
[359550856,1746109845876,-400.0,0.0003041,5]
[359550858,1746109845887,-400.0,0.0003041,5]
[359550860,1746109845897,-652.72,0.0003041,5]
[359550861,1746109845908,-400.0,0.0003041,5]
[359550863,1746109845919,-344.62875424,0.0003041,5]
[359550864,1746109845930,-778.87,0.0003041,5]
[359550865,1746109845940,-400.0,0.0003041,5]
[359550867,1746109845951,-735.95,0.0003041,5]
[359550869,1746109845961,-400.0,0.0003041,5]
[359550870,1746109845971,-400.0,0.0003041,5]
[359550871,1746109845981,-400.0,0.0003041,5]
[359550872,1746109845991,-592.42,0.0003041,5]
[359550873,1746109846002,-400.0,0.0003041,5]
[359550875,1746109846012,-400.0,0.0003041,5]
[359550876,1746109846024,-400.0,0.0003041,5]
[359550877,1746109846034,-2269.42,0.0003041,5]
[359550878,1746109846047,-400.0,0.0003041,5]
[359550879,1746109846057,-523.57913578,0.0003041,5]
[359550880,1746109846068,-400.0,0.0003041,5]
[359550881,1746109846078,-400.0,0.0003041,5]
[359550882,1746109846090,-489.80167601,0.0003041,5]
[359550883,1746109846101,-400.0,0.0003041,5]
[359550884,1746109846112,-179.623939,0.0003041,7]
[359550886,1746109846122,-536.42,0.0003041,5]
[359550887,1746109846133,-179.623939,0.0003041,7]
[359550888,1746109846143,-400.0,0.0003041,5]
[359550889,1746109846153,-400.0,0.0003041,5]
[359550890,1746109846164,-400.0,0.0003041,5]
[359550891,1746109846175,-400.0,0.0003041,5]
[359550892,1746109846185,-292.688111,0.0003041,7]
[359550893,1746109846195,-400.0,0.0003041,5]
[359550894,1746109846206,-292.688111,0.0003041,7]
[359550895,1746109846216,-500.0,0.0003041,5]
[359550896,1746109846226,-400.0,0.0003041,5]
[359550897,1746109846236,-437.72,0.0003041,5]
[359550898,1746109846247,-400.0,0.0003041,5]